[Event "74th PGNiG TERMIKA POL-ch Women 2022"]
[Site "Kruszwica"]
[Date "2022.05.12"]
[Round "4.5"]
[White "Kulon, Klaudia"]
[Black "Socko, Monika"]
[Result "1-0"]
[ECO "A25"]
[WhiteElo "2305"]
[BlackElo "2384"]
[Annotator "TA"]
[PlyCount "137"]
[EventDate "2022.05.09"]
[EventType "tourn"]
[EventCountry "POL"]
[SourceTitle "playchess.com"]
[Source "ChessBase"]
[SourceQuality "1"]
[TimeControl "40/5400+30:1800+30"]

{[%evp 16,137,41,52,45,43,45,34,46,52,46,48,41,34,53,38,41,30,38,25,37,15,18,1,11,10,0,5,27,19,29,0,39,40,31,28,49,48,48,55,58,41,43,43,75,45,135,139,141,138,193,194,142,170,246,243,271,263,116,243,244,264,340,350,355,345,261,139,130,89,458,417,466,449,458,476,462,477,443,347,5422,1977,3222,2898,5831,5662,29982,29983,29983,29984,29983,29972,29972,29973,29973,29973,29972,29974,29974,29975,29974,29971,29970,29971,29967,4939,4586,4582,1846,1768,571,1327,824,571,5322,741,29987,2244,29986,1687,29996,29997,29997,29996]} 1. c4 {[%emt 0:00:03]} e5 {[%emt 0:00:15]} 2. Nc3 {[%emt 0:00:12]} Nc6 {[%emt 0:00:28]} 3. g3 {[%emt 0:00:14]} g6 {[%emt 0:00:34]} 4. Bg2 {[%emt 0:00:14]} Bg7 {[%emt 0:00:05]} 5. e3 {[%emt 0:00:15]} d6 {[%emt 0:00:15]} 6. Nge2 {[%emt 0:00:42]} Be6 {[%emt 0:00:08]} 7. d4 {[%emt 0:07:26]} Bxc4 {[%emt 0:01:43]} 8. d5 {[%emt 0:01:07]} Bxe2 {[%emt 0:00:11]} 9. Qxe2 {[%emt 0:00:23]} Nb8 {[%emt 0:00:24][%cal Bc6b8,Bb8d7,Bd7c5][%mdl 32] A25: English Opening vs King's Indian with ...Nc6 but without early d3.} 10. Qb5+ {[%emt 0:01:19]} Nd7 {[%emt 0:00:04]} 11. Qxb7 {[%emt 0:00:19]} Ne7 {[%emt 0:00:27] White is slightly better.} 12. O-O {[%emt 0:06:54]} O-O {[%emt 0:00:07]} 13. e4 {[%emt 0:06:03]} Nc5 {[%emt 0:04:44]} 14. Qb5 {[%emt 0:02:02]} f5 {[%emt 0:00:09]} 15. Bg5 {[%emt 0:06:35]} Rb8 {[%emt 0:07:13]} 16. Qe2 {[%emt 0:00:54] [#]} f4 $146 {[%emt 0:00:30]} ({Predecessor:} 16... Qe8 17. Be3 Na4 18. Nxa4 Qxa4 19. b3 Qa5 20. Qd2 Qxd2 21. Bxd2 fxe4 22. Bxe4 Nf5 {½-½ (45) Safronov,S (2370)-Sychev,S Ufa 1999}) 17. Rab1 {[%emt 0:06:43]} a5 {[%emt 0:02:07]} 18. Qc2 {[%emt 0:02:52]} Qd7 {[%emt 0:27:09]} 19. Bxe7 {[%emt 0:01:23]} (19. b3 {is interesting.} Rbe8 20. f3 c6 21. gxf4 cxd5 22. Bxe7 Rxe7 23. Nxd5 Ref7 24. f5) 19... Qxe7 {[%emt 0:00:03]} 20. Na4 {[%emt 0:02:35]} Nxa4 {[%emt 0:06:00]} 21. Qxa4 {[%emt 0:00:03]} Bh6 {[%emt 0:00:08]} 22. a3 {[%emt 0:07:55]} Ra8 {[%emt 0:02:25]} 23. Rfd1 {[%emt 0:03:47][%cal Bf1d1,Bd1d3,Bd3c3][%mdl 32]} Qf6 {[%emt 0:03:33]} 24. Qc2 {[%emt 0:00:56]} Bg5 {[%emt 0:01:14]} 25. Rd3 {[%emt 0:01:02]} h5 {[%emt 0:00:34]} 26. Rc3 {[%emt 0:03:36]} Ra7 {[%emt 0:02:43]} 27. Bh3 {[%emt 0:05:25][%cal Bg2h3,Bh3e6,Be6g4,Bg4f5][%mdl 32]} Qg7 {[%emt 0:03:09]} 28. Be6+ {[%emt 0:01:45]} Kh8 {[%emt 0:00:04]} 29. g4 {[%emt 0:00:39][%cal Bg3g4,Bg4h5][%mdl 32] aiming for gxh5.} f3 {[%emt 0:05:00]} 30. Kh1 {[%emt 0:04:14]} Qf6 {[%emt 0:03:44]} (30... Qh6 $14) 31. gxh5 $1 $16 {[%emt 0:03:22]} (31. Rxc7 $2 Rxc7 32. Qd1 hxg4 33. Bxg4 Qf4 $19) 31... c5 {[%emt 0:01:16]} 32. Rg1 $1 {[%emt 0:00:19]} Rh7 {[%emt 0:04:54] [#]} (32... gxh5 $16 33. Bf5 Rg7) 33. Bg4 $1 $18 {[%emt 0:00:45]} (33. hxg6 Qxg6 34. Rg3 (34. Bf5 $2 Rxf5 35. Rxf3 Rxf3 $19) 34... Qh6 $14) 33... Bf4 {[%emt 0:00:42]} (33... gxh5 $18 34. Rxf3 (34. Bf5 Rg7 $16) 34... Bf4) 34. Rxf3 $16 {[%emt 0:00:41]} Rg8 {[%emt 0:01:08]} (34... gxh5 $142 35. Bf5 Rg7) 35. Rh3 $18 {[%emt 0:04:48]} gxh5 {[%emt 0:02:21]} 36. Bf5 {[%emt 0:00:18]} (36. Rxh5 $2 Rxh5 37. Bxh5 Qh4 $19) 36... Rxg1+ {[%emt 0:01:38]} 37. Kxg1 {[%emt 0:00:01]} Rg7+ {[%emt 0:00:41] [#]} 38. Kf1 $1 {[%emt 0:00:05]} (38. Rg3 Bxg3 39. hxg3 h4 $17) 38... Qg5 {[%emt 0:00:59]} 39. Qb3 {[%emt 0:01:02]} Rg8 {[%emt 0:09:12] Against Qb8} 40. Qb7 {[%emt 0:00:00][%csl Gf5][%cal Rb7h7] Really sharp!} Qh6 {[%emt 0:00:00] Against Qh7+} 41. Qf7 {[%emt 0:17:20]} ({White should try} 41. Be6 $18 Rd8 42. Qc7) 41... h4 $16 {[%emt 0:00:25]} 42. Qe6 $40 {[%emt 0:00:58][%mdl 128] White wants a kill. White is more active.} ({But not} 42. Be6 Rd8 43. Rf3 Qg7 44. Rxf4 exf4 $18) 42... Qg5 $4 {[%emt 0:08:56][%mdl 8192]} (42... a4 $16 {is tougher.}) 43. Qxd6 $18 {[%emt 0:03:29]} Bxh2 {[%emt 0:00:45] ( -> ...Qc1+)} 44. Qxc5 {[%emt 0:00:41]} ({Inferior is} 44. Rxh2 Qc1+ 45. Ke2 Qxb2+ 46. Kf3 (46. Kd3 Qb3+ 47. Ke2 Qb2+ 48. Kf3 Qb3+ 49. Ke2 Qb2+ $11) 46... Qb3+ 47. Ke2 Qb2+ 48. Kf3 (48. Kd3 Qb3+ 49. Ke2 Qb2+ $11) 48... Qb3+ 49. Ke2 Qb2+ $11) 44... Qh5 {[%emt 0:02:30][%cal Rh5d1]} 45. f3 {[%emt 0:03:55]} Bg3 {[%emt 0:03:47]} 46. Ke2 {[%emt 0:03:34] Hoping for Qe7.} Qg5 {[%emt 0:12:51] Prevents Qe7.} 47. d6 {[%emt 0:04:29] And now Qc7 would win.} Qf6 $2 {[%emt 0:04:06]} (47... Rb8) 48. Qa7 {[%emt 0:05:10]} (48. Qc7 $142 Qh6 49. Kd3) 48... Qh6 {[%emt 0:06:02]} 49. Qe7 {[%emt 0:02:20]} Rb8 {[%emt 0:00:08]} 50. b4 {[%emt 0:03:07]} axb4 {[%emt 0:00:09]} 51. d7 {[%emt 0:00:18]} Qa6+ {[%emt 0:00:23]} 52. Kd2 {[%emt 0:00:09][%csl Gf5][%cal Re7h7]} Qh6+ {[%emt 0:04:35]} 53. Kd1 {[%emt 0:00:04]} bxa3 {[%emt 0:00:46]} 54. d8=R+ {[%emt 0:00:28]} Rxd8+ {[%emt 0:00:01]} 55. Qxd8+ {[%emt 0:00:06]} Kg7 {[%emt 0:00:02]} 56. Qe7+ {[%emt 0:00:59]} Kh8 {[%emt 0:00:04]} 57. Qxa3 {[%emt 0:00:19]} Kg8 {[%emt 0:00:49]} 58. Qa8+ {[%emt 0:02:05]} Kf7 {[%emt 0:00:02]} 59. Qb7+ {[%emt 0:00:07]} Kf8 {[%emt 0:00:17]} 60. Ke2 {[%emt 0:01:52]} (60. Qb8+ $142 Kf7 61. Qa7+ Kf8 62. Qc5+ Kf7 63. Qc7+ Kf8 64. Qd8+ Kf7 65. Qd7+ Kf8 66. Qd8+ Kf7 67. Qc7+ Kf8 68. Qd8+) 60... Qd6 {[%emt 0:02:00]} 61. Qc8+ {[%emt 0:00:28]} Ke7 {[%emt 0:00:04]} 62. Rh1 {[%emt 0:00:34] Intending Rb1 and mate.} Qb6 {[%emt 0:00:31] Inhibits Rb1.} 63. Qd7+ {[%emt 0:03:56]} Kf6 {[%emt 0:00:52]} 64. Rd1 {[%emt 0:00:27] Rd6+ would kill now.} Qf2+ {[%emt 0:01:12]} 65. Kd3 {[%emt 0:00:02] Threatening mate with Qe6+.} Qxf3+ {[%emt 0:00:05]} 66. Kc2 {[%emt 0:00:17]} (66. Kc4 $142 Qe2+ 67. Rd3 Qa2+ 68. Kb5 Qg8 69. Bh7 Qb8+ 70. Kc4 Qb6 71. Qf5+ Kg7 72. Qg5+ Kf8 73. Qg8+ Ke7 74. Qg7+ Ke8 75. Bg6+ Qxg6 76. Qxg6+ Ke7 77. Qg7+ Ke6 78. Rd7 h3 79. Qf7#) 66... Qe2+ {[%emt 0:00:15]} 67. Kb1 {[%emt 0:00:27]} (67. Kb3 $142 Kg5 68. Rd3 Kf4 69. Qd6 Qxe4 70. Bxe4 Kxe4 71. Qg6+ Kf4 72. Qf6+ Kg4 73. Qf3+ Kg5 74. Qe4) 67... Qc4 {[%emt 0:01:26]} 68. Qd8+ {[%emt 0:00:14]} Kg7 {[%emt 0:00:07]} 69. Rd7+ {[%emt 0:00:06] Weighted Error Value: White=0.09 (flawless) /Black=0.35} 1-0

[Event "74th PGNiG TERMIKA POL-ch Women 2022"]
[Site "Kruszwica"]
[Date "2022.05.13"]
[Round "5.1"]
[White "Majdan, Joanna"]
[Black "Rudzinska, Michalina"]
[Result "0-1"]
[ECO "B11"]
[WhiteElo "2325"]
[BlackElo "2236"]
[Annotator "TA"]
[PlyCount "84"]
[EventDate "2022.05.09"]
[EventType "tourn"]
[EventCountry "POL"]
[SourceTitle "playchess.com"]
[Source "ChessBase"]
[SourceQuality "1"]
[TimeControl "40/5400+30:1800+30"]

{[%evp 10,84,24,14,19,-21,-22,-25,-27,-35,-37,-62,-26,-25,-10,-10,-12,-12,0,0,6,0,0,-44,-25,-56,-34,-56,-34,-45,-58,-48,-33,-26,-26,-29,-18,-24,-33,-42,-55,-53,-49,-195,-208,-200,-227,-236,-243,-238,-103,-243,-237,-337,-279,-333,-323,-482,-455,-485,-451,-457,-464,-655,-625,-958,-963,-29979,-29980,-29980,-29981,-29989,-29990,-29994,-29995,-29997,-29998]} 1. e4 {[%emt 0:00:03]} c6 {[%emt 0:00:06]} 2. Nc3 {[%emt 0:00:15]} d5 {[%emt 0:00:09]} 3. Nf3 {[%emt 0:00:06]} Bg4 {[%emt 0:00:11]} 4. h3 {[%emt 0:00:10]} Bxf3 {[%emt 0:00:08]} 5. Qxf3 {[%emt 0:00:06]} e6 {[%emt 0:00:13]} 6. Be2 {[%emt 0:02:33]} Nf6 {[%emt 0:00:11] B11: Caro-Kann: Two Knights Variation.} 7. exd5 {[%emt 0:01:20]} cxd5 {[%emt 0:02:05]} 8. Bb5+ {[%emt 0:11:07]} Nc6 {[%emt 0:02:30] Black has an edge.} 9. Bxc6+ {[%emt 0:03:50]} bxc6 {[%emt 0:00:06]} 10. d4 {[%emt 0:00:02]} Qb6 {[%emt 0:18:26] [#]} 11. Qd3 $146 {[%emt 0:00:55]} ({Predecessor:} 11. O-O Qxd4 12. Bg5 Qe5 13. h4 Bd6 14. g3 Qd4 15. Rad1 Qg4 16. Rd3 Qxf3 17. Rxf3 {0-1 (32) Brough,C (631)-Giovani,M (993) LSS email 2010}) 11... Bd6 {[%emt 0:01:02]} 12. O-O {[%emt 0:00:31]} O-O {[%emt 0:00:08]} 13. Na4 {[%emt 0:10:43]} Qb5 {[%emt 0:08:56]} 14. b3 {[%emt 0:00:04]} e5 {[%emt 0:03:28]} 15. Be3 {[%emt 0:02:50]} e4 {[%emt 0:02:08]} 16. Qd2 {[%emt 0:01:10]} Nh5 {[%emt 0:06:31]} 17. g4 {[%emt 0:12:51]} Nf6 {[%emt 0:00:17]} 18. Nc5 {[%emt 0:02:04]} Rad8 {[%emt 0:02:59]} 19. a4 {[%emt 0:08:24]} Qb8 {[%emt 0:01:05]} 20. Bg5 {[%emt 0:07:12]} Bxc5 {[%emt 0:09:40]} 21. dxc5 {[%emt 0:02:41]} Qe5 {[%emt 0:00:35]} 22. Qf4 {[%emt 0:05:59]} Qc3 {[%emt 0:04:08][%csl LRc2,LRc5,LRh3]} 23. Qe3 {[%emt 0:07:09]} Qxc2 {[%emt 0:02:42]} 24. Bxf6 {[%emt 0:03:57]} gxf6 {[%emt 0:00:07]} 25. Qd4 {[%emt 0:04:43]} Rde8 {[%emt 0:10:41][%cal Bd8e8,Be8e6,Be6g6][%mdl 32]} 26. Qxf6 {[%emt 0:02:24] Black converts the advantage convincingly.} (26. b4 $15) 26... Re6 $19 {[%emt 0:00:15]} (26... Qxc5 27. Qg5+ Kh8 28. Qf6+ Kg8 29. Qg5+ Kh8 30. Qf6+ Kg8 $11) 27. Qg5+ {[%emt 0:02:40]} Rg6 {[%emt 0:00:11]} 28. Qe3 {[%emt 0:00:05] [#]} f5 $1 {[%emt 0:03:12]} 29. f3 {[%emt 0:02:30]} Rb8 {[%emt 0:07:50]} (29... f4 $19 {and Black stays clearly on top.} 30. Qc1 Qd3) 30. fxe4 {[%emt 0:02:15]} (30. Rac1 $17 Rxb3 31. Qf4) 30... Rxb3 {[%emt 0:00:24]} (30... fxg4 31. Rf2 gxh3+ 32. Kh1 Qxe4+ 33. Qxe4 dxe4 34. Re1 $17) 31. Qf2 {[%emt 0:02:35]} (31. Qf4 {was worth a try.} Qc3 32. Ra2 (32. exf5 $2 Qxh3 33. fxg6 Rg3+ 34. Qxg3 Qxg3+ 35. Kh1 Qh4+ 36. Kg2 Qxg4+ 37. Kh2 hxg6 $19) 32... Qxh3 33. Rg2) 31... Qxf2+ {[%emt 0:03:18]} ({Weaker is} 31... Qxe4 32. Rae1 Rxg4+ 33. Kh2 $17 (33. hxg4 $2 Qxg4+ 34. Qg2 Rg3 $19)) 32. Kxf2 {[%emt 0:00:31]} fxe4 {[%emt 0:00:28][%cal Bf5e4,Be4e3,Be3e2][%mdl 4128] Endgame KRR-KRR} 33. Rab1 {[%emt 0:01:08]} (33. Kg2 $142) 33... Rxh3 {[%emt 0:04:00]} 34. Rb8+ {[%emt 0:00:10]} Kg7 {[%emt 0:00:07]} 35. Rb7+ {[%emt 0:01:08]} Kh6 {[%emt 0:00:10]} 36. Rxa7 {[%emt 0:00:24]} (36. Rc7 $142 a5 37. Ke1) 36... Rxg4 {[%emt 0:00:50] [#] Strongly threatening ...e3+.} 37. Rc7 {[%emt 0:00:13]} e3+ {[%emt 0:04:06]} 38. Ke1 {[%emt 0:00:09]} Rxa4 {[%emt 0:01:03] Black mates.} 39. Rxc6+ {[%emt 0:00:04]} Kg5 {[%emt 0:00:27]} 40. Rg1+ {[%emt 0:00:00]} Kf5 {[%emt 0:00:00]} 41. Ke2 {[%emt 0:02:19]} Ra2+ {[%emt 0:02:05]} 42. Kd3 {[%emt 0:00:25]} e2+ {[%emt 0:00:08] Weighted Error Value: White=0.53/Black=0.07 (flawless)} 0-1

[Event "74th PGNiG TERMIKA POL-ch Women 2022"]
[Site "Kruszwica"]
[Date "2022.05.13"]
[Round "5.2"]
[White "Antolak, Julia"]
[Black "Kubicka, Anna"]
[Result "1-0"]
[ECO "C54"]
[WhiteElo "2371"]
[BlackElo "2245"]
[Annotator "TA"]
[PlyCount "209"]
[EventDate "2022.05.09"]
[EventType "tourn"]
[EventCountry "POL"]
[SourceTitle "playchess.com"]
[Source "ChessBase"]
[SourceQuality "1"]
[TimeControl "40/5400+30:1800+30"]

{[%evp 21,209,20,32,27,31,0,0,-33,-8,-29,-24,-11,-1,-12,0,-22,19,20,42,0,24,0,51,47,90,72,70,19,101,96,92,95,89,62,58,55,50,47,61,70,62,80,120,115,124,101,102,99,164,144,190,110,108,81,99,96,84,86,109,92,112,89,112,74,66,61,73,70,63,79,87,66,88,39,50,0,85,87,100,92,165,53,120,22,27,22,50,50,50,52,216,216,216,216,216,216,216,216,216,200,216,216,216,199,216,216,248,216,216,216,216,216,216,216,216,216,606,581,641,655,627,609,529,419,652,626,626,626,583,521,481,412,412,418,404,366,3291,316,7451,7084,7790,277,9758,276,5314,1417,6063,668,29954,29945,5595,5616,29970,29972,29959,6086,29986,29987,29987,29986,29986,29987,29987,29988,29988,29989,29991,29992,29992,29992,29992,29992,29992,29990,29990,29984,29991,29992,29992,29990,29990,29991,29991,29988,29988,29985,29985,29986,29995,29996]} 1. e4 {[%emt 0:00:03]} e5 {[%emt 0:00:07]} 2. Nf3 {[%emt 0:00:06]} Nc6 {[%emt 0:00:08]} 3. Bc4 {[%emt 0:00:08]} Bc5 {[%emt 0:00:12]} 4. c3 {[%emt 0:00:31]} Nf6 {[%emt 0:00:44]} 5. d4 {[%emt 0:00:15]} exd4 {[%emt 0:00:26]} 6. e5 {[%emt 0:00:16]} d5 {[%emt 0:03:47]} 7. Bb5 {[%emt 0:00:40]} Ne4 {[%emt 0:15:04]} 8. cxd4 {[%emt 0:00:08]} Bb4+ {[%emt 0:00:13]} 9. Bd2 {[%emt 0:00:32]} Nxd2 {[%emt 0:07:00]} 10. Nbxd2 {[%emt 0:00:36]} O-O {[%emt 0:00:51] 10...0-0 is better than 10...Bd7.} 11. Bxc6 {[%emt 0:05:38]} bxc6 {[%emt 0:00:52]} 12. O-O {[%emt 0:00:10] C54: Giuoco Piano: 4 c3 Nf6, main lines with 5 d4 and 5 d3.} c5 {[%emt 0:15:09]} 13. dxc5 {[%emt 0:13:20]} (13. Qc2 $5 {[%cal Rd4c5]}) 13... Bxc5 {[%emt 0:00:27]} 14. Qc2 {[%emt 0:00:20] The position is equal.} Qe7 {[%emt 0:04:13] [#]} 15. Rac1 $146 {[%emt 0:11:09]} ({Predecessor:} 15. Nb3 Bb6 16. Rad1 Bb7 17. Rfe1 Rfe8 18. Qf5 Qe6 19. Nfd4 Qxf5 20. Nxf5 g6 21. Nfd4 {0-1 (50) February,J (1857)-Klabis,R (2353) Chess.com INT 2021}) 15... Bb6 {[%emt 0:01:32]} 16. Qc6 {[%emt 0:01:35]} Be6 {[%emt 0:11:49]} 17. Nb3 {[%emt 0:01:07]} Rad8 {[%emt 0:04:36]} 18. Nfd4 {[%emt 0:03:20]} Bc8 {[%emt 0:09:32]} 19. Rfe1 $1 {[%emt 0:03:53]} Qh4 {[%emt 0:06:00]} 20. Rcd1 {[%emt 0:05:24] Active counter play!} Bd7 {[%emt 0:02:56]} 21. Qc2 {[%emt 0:04:33]} Qh5 {[%emt 0:08:15]} (21... Ba4 $11 22. Nf5 Qb4) 22. Nc5 $14 {[%emt 0:07:03]} Bg4 {[%emt 0:01:51]} 23. f3 {[%emt 0:02:15]} Bc8 {[%emt 0:00:06]} 24. Kh1 {[%emt 0:01:30]} (24. Na4 $14) 24... Qg6 {[%emt 0:01:54]} (24... Rde8 $1 $11) 25. Qc3 {[%emt 0:04:14]} Bxc5 {[%emt 0:00:03]} 26. Qxc5 {[%emt 0:00:05]} Qb6 {[%emt 0:00:05]} 27. Rc1 {[%emt 0:04:10]} Qxb2 {[%emt 0:01:34]} 28. Nc6 {[%emt 0:09:12][%cal Bd4c6,Bc6e7,Be7d5,Bd5c7,Bc7b5,Bb5d6][%mdl 32]} Rde8 {[%emt 0:00:12]} 29. Rc2 $36 {[%emt 0:00:47][%mdl 2048] Black is under pressure.} Qb6 {[%emt 0:00:33]} 30. Ne7+ {[%emt 0:01:48][%mdl 64] Discovered Attack} Kh8 $1 {[%emt 0:00:07] Threatens to win with ...Qxc5.} 31. Nxd5 {[%emt 0:00:15]} Qg6 {[%emt 0:02:28]} 32. Nxc7 {[%emt 0:02:14]} Rd8 {[%emt 0:00:06]} 33. Nb5 {[%emt 0:03:59]} a6 {[%emt 0:01:49]} 34. Nd6 {[%emt 0:00:57][%cal Rd6c8]} Bf5 {[%emt 0:00:13]} (34... Be6 $16 35. Rce2 f6 36. exf6 Rxf6) 35. Rd2 $18 {[%emt 0:00:58]} h6 {[%emt 0:00:28]} (35... Be6 $16 36. Qb6 Qh6) 36. Red1 {[%emt 0:01:28]} (36. f4 $18) 36... Rb8 $16 {[%emt 0:00:19]} 37. Qa7 {[%emt 0:02:11]} (37. h3 {is interesting.} f6 38. Kh2 fxe5 39. Qxe5 Rb1 40. Nxf5 Rxf5 41. Qe4) 37... Qe6 {[%emt 0:00:37]} 38. Kg1 {[%emt 0:06:27]} Bg6 {[%emt 0:00:16]} 39. Qd4 {[%emt 0:02:44]} Bb1 {[%emt 0:02:02]} 40. a3 {[%emt 0:00:00]} Bg6 {[%emt 0:00:00]} 41. f4 {[%emt 0:08:24]} f6 {[%emt 0:10:13]} 42. Qc4 {[%emt 0:03:55]} (42. h3 {is more complex.} fxe5 43. fxe5 Rb3 44. Re1) 42... Qxc4 {[%emt 0:05:21]} 43. Nxc4 {[%emt 0:00:48]} Bh5 {[%emt 0:00:04]} 44. Re1 {[%emt 0:00:58]} fxe5 {[%emt 0:00:27]} 45. fxe5 {[%emt 0:01:10]} Bf7 {[%emt 0:02:09]} 46. Nd6 {[%emt 0:00:57]} Be6 {[%emt 0:02:49]} 47. Ne4 {[%emt 0:02:05]} (47. a4 $16) 47... Rb5 $1 $14 {[%emt 0:00:22]} 48. Nd6 {[%emt 0:01:41]} (48. Nf2 $14) 48... Rb3 {[%emt 0:01:36]} (48... Rbb8 $11) 49. a4 $16 {[%emt 0:00:59]} Rb4 {[%emt 0:07:42]} 50. Ne4 $1 {[%emt 0:04:19]} a5 {[%emt 0:03:39]} (50... Rc4 $16) 51. Rd6 {[%emt 0:02:24]} (51. Nc5 $18 Bf5 52. e6) 51... Bf5 {[%emt 0:01:40] [#]} (51... Bb3 $1 $14) 52. Ng3 {[%emt 0:00:46]} (52. Nc3 $1 $16) 52... Bc2 $11 {[%emt 0:00:12]} 53. e6 {[%emt 0:02:36][%cal Be5e6,Be6e7][%mdl 32] e7 is the strong threat.} Bxa4 {[%emt 0:00:13]} 54. e7 {[%emt 0:04:24]} Re8 {[%emt 0:00:31]} 55. Nf5 {[%emt 0:00:23]} Rf4 $2 {[%emt 0:01:10] Black cannot hold the game after this.} (55... Rb5 $1 $14 56. g4 Rb7) 56. Re5 $18 {[%emt 0:00:50] And now Rd8 would win.} Kh7 {[%emt 0:00:57]} 57. Rd8 {[%emt 0:01:07] Strongly threatening Nd6.} Rxf5 {[%emt 0:00:39]} 58. Rxf5 {[%emt 0:00:18]} Rxe7 {[%emt 0:00:03]} 59. Rxa5 {[%emt 0:00:12][%mdl 4096] Endgame KRR-KRB} Bc6 {[%emt 0:00:15]} 60. Rd2 {[%emt 0:00:23] Prevents Re2.} Rf7 {[%emt 0:00:32]} 61. h3 {[%emt 0:00:19]} Re7 {[%emt 0:00:07]} 62. Rc5 {[%emt 0:00:09]} Bb7 {[%emt 0:00:09]} 63. Rdc2 {[%emt 0:00:09]} Ba8 {[%emt 0:00:49]} 64. Kh2 {[%emt 0:00:56]} Rd7 {[%emt 0:00:12]} 65. Rc8 {[%emt 0:01:09]} Be4 {[%emt 0:00:05]} 66. R2c4 {[%emt 0:00:20]} Re7 {[%emt 0:00:29]} 67. R8c7 {[%emt 0:01:09]} Re6 {[%emt 0:00:26]} 68. Ra7 {[%emt 0:00:38]} Bd5 $2 {[%emt 0:00:20]} (68... Bd3) 69. Rg4 {[%emt 0:00:27]} Rg6 {[%emt 0:00:29]} 70. Rxg6 {[%emt 0:00:04]} Kxg6 {[%emt 0:00:03] KR-KB} 71. Kg3 {[%emt 0:00:17]} Be4 {[%emt 0:01:50]} 72. Ra6+ {[%emt 0:00:16]} Kf7 {[%emt 0:01:26]} (72... Kg5 $142 73. Ra5+ Kf6) 73. Kf2 {[%emt 0:00:13]} Bd3 {[%emt 0:00:20]} 74. Rb6 {[%emt 0:00:05]} Be4 {[%emt 0:00:13]} 75. g3 {[%emt 0:00:13]} Bf5 {[%emt 0:00:17]} 76. h4 {[%emt 0:00:07]} Bc2 {[%emt 0:00:52]} 77. Ke3 {[%emt 0:00:06] aiming for Kf4.} Bf5 {[%emt 0:00:45]} 78. Kf4 {[%emt 0:00:04]} Bd3 $2 {[%emt 0:00:42]} (78... Be6 79. g4 Bc4) 79. Ke5 $2 {[%emt 0:00:04]} (79. Rd6 Bc2 80. g4) 79... Be2 $2 {[%emt 0:00:15]} (79... Bf1 80. g4 Be2 81. Rb7+ Kg6 82. Rb6+ Kh7) 80. Rb7+ {[%emt 0:00:23]} Kg6 {[%emt 0:00:11]} 81. Rc7 $2 {[%emt 0:01:04]} (81. Ke6 Ba6 82. Rc7) 81... Bd1 $2 {[%emt 0:00:11]} (81... Bg4 82. Kf4 Bh3 83. Rc6+ Kh5 84. Rc5+ Kg6) 82. Ra7 $2 {[%emt 0:02:27]} (82. Ke6 Be2 83. Rc5) 82... Be2 $2 {[%emt 0:00:19]} (82... Bg4 83. Kf4 Be6) 83. Ke6 {[%emt 0:00:45]} Bd1 {[%emt 0:01:26]} 84. Ra5 {[%emt 0:00:56]} (84. Rc7 $142 Bf3 85. Rc5) 84... Bc2 {[%emt 0:00:42]} 85. Ke7 {[%emt 0:00:16]} Kh7 {[%emt 0:00:19]} 86. Kf8 {[%emt 0:00:43] Ra7 would kill now.} Kh8 {[%emt 0:00:46]} 87. Ra7 {[%emt 0:00:53]} g6 {[%emt 0:00:08]} 88. Kf7 {[%emt 0:00:17] White threatens Kf6 and mate.} g5 {[%emt 0:00:48]} 89. hxg5 {[%emt 0:00:23] White mates.} hxg5 {[%emt 0:00:02]} 90. Ra5 {[%emt 0:00:27]} Bb3+ {[%emt 0:00:52]} 91. Kf6 {[%emt 0:00:06]} g4 {[%emt 0:00:08] [#]} 92. Rh5+ $1 {[%emt 0:00:04]} Kg8 {[%emt 0:00:14]} 93. Rg5+ {[%emt 0:00:03]} Kh8 {[%emt 0:00:06]} 94. Rxg4 {[%emt 0:00:05]} Bc2 {[%emt 0:00:03]} 95. Rc4 {[%emt 0:00:16]} Bd3 {[%emt 0:00:08]} 96. Rc7 {[%emt 0:00:07]} Be2 {[%emt 0:00:17]} 97. Kg6 {[%emt 0:00:17][%cal Rc7c8]} Bd3+ {[%emt 0:00:23]} 98. Kh6 {[%emt 0:00:04][%cal Rc7c8]} Bf5 {[%emt 0:00:08]} 99. Rf7 {[%emt 0:00:18][%cal Rf7f8]} Be6 {[%emt 0:00:04]} 100. Re7 {[%emt 0:00:11]} Bc4 {[%emt 0:00:22]} 101. g4 {[%emt 0:00:05][%cal Bg3g4,Bg4g5,Bg5g6][%mdl 32]} Kg8 {[%emt 0:00:03]} 102. g5 {[%emt 0:00:11]} Kf8 {[%emt 0:00:05]} 103. Rc7 {[%emt 0:00:05]} Be6 {[%emt 0:00:42]} 104. g6 {[%emt 0:00:10]} Kg8 {[%emt 0:00:18]} 105. Re7 {[%emt 0:00:06] Weighted Error Value: White=0.19 (very precise) /Black=0.24 (precise)} 1-0